fUST/lending_fUST_20250201
["ID","MTS","AMOUNT","RATE_DAILY","PERIOD"]
[351150733,1738357840180,-500.0,0.00018219,2]
[351150734,1738357840189,-500.0,0.00018219,2]
[351150735,1738357840198,-2818.44,0.00018219,2]
[351150736,1738357840207,-500.0,0.00018219,2]
[351150738,1738357840217,-500.0,0.00018219,2]
[351150740,1738357840226,-500.0,0.00018219,2]
[351150741,1738357840235,-500.0,0.00018219,2]
[351150742,1738357840244,-500.0,0.00018219,2]
[351150743,1738357840254,-500.0,0.00018219,2]
[351150744,1738357840263,-897.25,0.00018219,2]
[351150746,1738357840272,-500.0,0.00018219,2]
[351150748,1738357840291,-500.0,0.00018219,2]
[351150750,1738357840300,-500.0,0.00018219,2]
[351150752,1738357840309,-500.0,0.00018219,2]
[351150753,1738357840318,-500.0,0.00018219,2]
[351150754,1738357840328,-500.0,0.00018219,2]
[351150756,1738357840337,-500.0,0.00018219,2]
[351150758,1738357840346,-519.33,0.00018219,2]
[351150759,1738357840356,-500.0,0.00018219,2]
[351150760,1738357840365,-668.86,0.00018219,2]
[351150761,1738357840375,-500.0,0.00018219,2]
[351150762,1738357840384,-962.19,0.00018219,2]
[351150763,1738357840394,-544.28,0.00018219,2]
[351150764,1738357840405,-500.0,0.00018219,2]
[351150765,1738357840414,-794.38,0.00018219,2]
[351150766,1738357840424,-500.0,0.00018219,2]
[351150767,1738357840433,-500.0,0.00018219,2]
[351150768,1738357840443,-500.0,0.00018219,2]
[351150770,1738357840456,-500.0,0.00018219,2]
[351150772,1738357840557,-615.08,0.00018219,2]
[351150773,1738357840567,-500.0,0.00018219,2]
[351150774,1738357840579,-500.0,0.00018219,2]
[351150775,1738357840589,-245.77,0.00018219,2]
[351150776,1738357840598,-500.0,0.00018219,2]
[351150777,1738357840607,-500.0,0.00018219,2]
[351150778,1738357840617,-500.0,0.00018219,2]
[351150779,1738357840627,-500.0,0.00018219,2]
[351150780,1738357840636,-500.0,0.00018219,2]
[351150781,1738357840646,-3472.56,0.00018219,2]
[351150782,1738357840661,-500.0,0.00018219,2]
[351150783,1738357840671,-500.0,0.00018219,2]
[351150784,1738357840680,-1998.8,0.00018219,2]
[351150785,1738357840690,-500.0,0.00018219,2]
[351150786,1738357840700,-788.53,0.00018219,2]
[351150787,1738357840709,-1280.87,0.00018219,2]
[351150788,1738357840719,-460.05,0.0001822,2]
[351150789,1738357840729,-511.8,0.0001822,2]
[351150790,1738357840738,-500.0,0.0001822,2]
[351150791,1738357840749,-500.0,0.0001822,2]
[351150792,1738357840759,-500.0,0.0001822,2]
[351150793,1738357840768,-500.0,0.00018253,2]
[351150794,1738357840778,-151.0,0.00018254,2]
[351150795,1738357840788,-151.0,0.00018254,2]
[351150796,1738357840797,-151.0,0.00018254,2]
[351150797,1738357840807,-151.0,0.00018254,2]
[351150798,1738357840816,-170.28878,0.00018254,2]
[351150799,1738357840826,-151.0,0.00018254,2]
[351150800,1738357840835,-170.28878,0.00018254,2]
[351150801,1738357840845,-152.011,0.00018296,2]
[351150802,1738357840854,-500.0,0.00018355,2]
[351150803,1738357840863,-561.52,0.00018355,2]
[351150804,1738357840873,-500.0,0.00018355,2]
[351150805,1738357840883,-500.0,0.00018356,2]
[351150806,1738357840893,-500.0,0.00018356,2]
[351150807,1738357840904,-500.0,0.00018356,2]
[351150808,1738357840914,-500.0,0.00018356,2]
[351150809,1738357840923,-396.1,0.00018356,2]
[351150810,1738357840933,-500.0,0.00018356,2]
[351150811,1738357840942,-500.0,0.00018356,2]
[351150812,1738357840952,-500.0,0.00018356,2]
[351150813,1738357840962,-500.0,0.00018356,2]
[351150814,1738357840971,-500.0,0.00018356,2]
[351150815,1738357840981,-500.0,0.00018356,2]
[351150816,1738357840991,-500.0,0.00018356,2]
[351150817,1738357841000,-500.0,0.00018356,2]
[351150818,1738357841009,-425.74,0.00018356,2]
[351150819,1738357841018,-500.0,0.00018356,2]
[351150820,1738357841028,-632.73,0.00018356,2]
[351150821,1738357841038,-2818.44,0.00018356,2]
[351150822,1738357841048,-500.0,0.00018356,2]
[351150823,1738357841058,-500.0,0.00018356,2]
[351150824,1738357841067,-500.0,0.00018356,2]
[351150825,1738357841077,-500.0,0.00018356,2]
[351150826,1738357841087,-500.0,0.00018356,2]
[351150827,1738357841097,-500.0,0.00018356,2]
[351150828,1738357841107,-897.25,0.00018356,2]
[351150829,1738357841117,-500.0,0.00018356,2]
[351150830,1738357841127,-500.0,0.00018356,2]
[351150831,1738357841136,-500.0,0.00018356,2]
[351150832,1738357841146,-500.0,0.00018356,2]
[351150833,1738357841158,-500.0,0.00018356,2]
[351150834,1738357841167,-500.0,0.00018356,2]
[351150835,1738357841177,-519.33,0.00018356,2]
[351150836,1738357841186,-500.0,0.00018356,2]
[351150837,1738357841196,-668.86,0.00018356,2]
[351150838,1738357841205,-500.0,0.00018356,2]
[351150839,1738357841215,-962.19,0.00018356,2]
[351150840,1738357841224,-544.28,0.00018356,2]
[351150841,1738357841234,-500.0,0.00018356,2]
[351150842,1738357841243,-794.38,0.00018356,2]
[351150843,1738357841253,-500.0,0.00018356,2]
[351150844,1738357841262,-157.08218412,0.00018356,2]
[351150845,1738357841271,-500.0,0.00018356,2]
[351150846,1738357841280,-500.0,0.00018356,2]
[351150847,1738357841289,-615.08,0.00018356,2]
[351150848,1738357841298,-500.0,0.00018356,2]
[351150849,1738357841308,-500.0,0.00018356,2]
[351150850,1738357841318,-500.0,0.00018356,2]
[351150851,1738357841327,-500.0,0.00018356,2]
[351150852,1738357841336,-500.0,0.00018356,2]
[351150853,1738357841346,-500.0,0.00018356,2]
[351150854,1738357841355,-3472.56,0.00018356,2]
[351150855,1738357841365,-360.56,0.00018356,2]
[351150856,1738357841375,-500.0,0.00018356,2]
[351150857,1738357841385,-1998.8,0.00018356,2]
[351150858,1738357841394,-788.53,0.00018356,2]
[351150859,1738357841404,-1280.87,0.00018356,2]
[351150860,1738357841413,-500.0,0.0001839,2]
[351150861,1738357841422,-369.99305824,0.00018423,2]
[351150862,1738357841431,-197.838418,0.00018492,2]
[351150863,1738357841441,-197.838418,0.00018492,2]
[351150864,1738357841450,-151.0,0.00018492,2]
[351150865,1738357841459,-151.0,0.00018492,2]
[351150866,1738357841468,-151.0,0.00018492,2]
[351150867,1738357841477,-500.0,0.00018492,2]
[351150868,1738357841487,-561.52,0.00018492,2]
[351150869,1738357841496,-500.0,0.00018492,2]
[351150870,1738357841505,-500.0,0.00018493,2]
[351150871,1738357841514,-500.0,0.00018493,2]
[351150872,1738357841523,-500.0,0.00018493,2]
[351150873,1738357841532,-500.0,0.00018493,2]
[351150874,1738357841541,-500.0,0.00018493,2]
[351150875,1738357841551,-175.99,0.00018493,2]
[351150876,1738357841560,-500.0,0.00018493,2]
[351150877,1738357841570,-500.0,0.00018493,2]
[351150878,1738357841582,-328.1,0.00018493,2]
[351150879,1738357841591,-500.0,0.00018493,2]
[351150880,1738357841601,-2818.44,0.00018493,2]
[351150881,1738357841610,-476.15,0.00018493,2]
[351150882,1738357841621,-500.0,0.00018493,2]
[351150883,1738357841630,-500.0,0.00018493,2]
[351150884,1738357841639,-500.0,0.00018493,2]
[351150885,1738357841649,-500.0,0.00018493,2]
[351150886,1738357841663,-897.25,0.00018493,2]
[351150887,1738357841673,-500.0,0.00018493,2]
[351150888,1738357841682,-500.0,0.00018493,2]
[351150889,1738357841692,-500.0,0.00018493,2]
[351150890,1738357841701,-500.0,0.00018493,2]
[351150891,1738357841710,-519.33,0.00018493,2]
[351150892,1738357841720,-500.0,0.00018493,2]
[351150893,1738357841729,-668.86,0.00018493,2]
[351150894,1738357841738,-500.0,0.00018493,2]
[351150895,1738357841748,-962.19,0.00018493,2]
[351150896,1738357841757,-544.28,0.00018493,2]
[351150897,1738357841767,-570.28,0.00018493,2]
[351150898,1738357841776,-794.38,0.00018493,2]
[351150899,1738357841786,-500.0,0.00018493,2]
[351150900,1738357841796,-500.0,0.00018493,2]
[351150901,1738357841805,-500.0,0.00018493,2]
[351150902,1738357841814,-615.08,0.00018493,2]
[351150903,1738357841823,-500.0,0.00018493,2]
[351150904,1738357841833,-580.66241935,0.00018493,2]
[351150905,1738357841842,-151.0,0.00018493,2]
[351150906,1738357841851,-151.0,0.00018493,2]
[351150907,1738357841860,-500.0,0.00018493,2]
[351150908,1738357841869,-500.0,0.00018493,2]
[351150909,1738357841879,-500.0,0.00018493,2]
[351150910,1738357841888,-151.0,0.00018493,2]
[351150911,1738357841897,-151.927478,0.00018493,2]
[351150912,1738357841908,-151.0,0.00018493,2]
[351150913,1738357841918,-500.0,0.00018493,2]
[351150914,1738357841927,-3472.56,0.00018493,2]
[351150915,1738357841936,-151.0,0.00018493,2]
[351150916,1738357841945,-500.0,0.00018493,2]
[351150917,1738357841955,-1998.8,0.00018493,2]
[351150918,1738357841964,-788.53,0.00018493,2]
[351150919,1738357841974,-1280.87,0.00018493,2]
[351150920,1738357841983,-502.54391737,0.00018527,2]
[351150921,1738357841994,-1000.0,0.0001854,2]
[351150922,1738357842003,-152.356257,0.00018629,2]
[351150923,1738357842012,-151.0,0.00018629,2]
[351150924,1738357842022,-151.0,0.00018629,2]
[351150925,1738357842031,-151.710515,0.00018629,2]
[351150926,1738357842040,-237.12,0.00018629,2]
[351150927,1738357842049,-561.52,0.00018629,2]
[351150928,1738357842059,-500.0,0.00018629,2]
[351150929,1738357842068,-271.98,0.0001863,2]
[351150930,1738357842078,-500.0,0.0001863,2]
[351150931,1738357842087,-500.0,0.0001863,2]
[351150932,1738357842097,-500.0,0.0001863,2]
[351150933,1738357842106,-500.0,0.0001863,2]
[351150934,1738357842116,-500.0,0.0001863,2]
[351150935,1738357842125,-500.0,0.0001863,2]
[351150936,1738357842135,-2818.44,0.0001863,2]
[351150937,1738357842145,-162.26,0.0001863,2]
[351150938,1738357842155,-500.0,0.0001863,2]
[351150939,1738357842164,-500.0,0.0001863,2]
[351150940,1738357842174,-500.0,0.0001863,2]
[351150941,1738357842183,-897.25,0.0001863,2]
[351150942,1738357842192,-500.0,0.0001863,2]
[351150943,1738357842201,-500.0,0.0001863,2]
[351150944,1738357842210,-500.0,0.0001863,2]
[351150945,1738357842219,-328.52,0.0001863,2]
[351150946,1738357842228,-519.33,0.0001863,2]
[351150947,1738357842238,-500.0,0.0001863,2]
[351150948,1738357842247,-668.86,0.0001863,2]
[351150949,1738357842256,-600.13,0.0001863,2]
[351150950,1738357842265,-962.19,0.0001863,2]
[351150951,1738357842274,-544.28,0.0001863,2]
[351150952,1738357842284,-794.38,0.0001863,2]
[351150953,1738357842293,-151.0,0.0001863,2]
[351150954,1738357842302,-623.2,0.0001863,2]
[351150955,1738357842311,-151.0,0.0001863,2]
[351150956,1738357842320,-615.08,0.0001863,2]
[351150957,1738357842329,-151.0,0.0001863,2]
[351150958,1738357842338,-500.0,0.0001863,2]
[351150959,1738357842348,-500.0,0.0001863,2]
[351150960,1738357842357,-500.0,0.0001863,2]
[351150961,1738357842366,-500.0,0.0001863,2]
[351150962,1738357842376,-500.0,0.0001863,2]
[351150963,1738357842385,-3472.56,0.0001863,2]
[351150964,1738357842394,-500.0,0.0001863,2]
[351150965,1738357842404,-1998.8,0.0001863,2]
[351150966,1738357842413,-788.53,0.0001863,2]
[351150967,1738357842423,-1280.87,0.0001863,2]
[351150968,1738357842432,-561.52,0.00018766,2]
[351150969,1738357842441,-500.0,0.00018766,2]
[351150970,1738357842450,-12992.6348398,0.00018767,5]
[351150971,1738357842460,-500.0,0.00018767,2]
[351150972,1738357842469,-500.0,0.00018767,2]
[351150973,1738357842478,-500.0,0.00018767,2]
[351150974,1738357842488,-573.4,0.00018767,2]
[351150975,1738357842497,-227.95,0.00018767,2]
[351150976,1738357842506,-2818.44,0.00018767,2]
[351150977,1738357842516,-500.0,0.00018767,2]
[351150978,1738357842526,-500.0,0.00018767,2]
[351150979,1738357842535,-500.0,0.00018767,2]
[351150980,1738357842632,-897.25,0.00018767,2]
[351150981,1738357842641,-500.0,0.00018767,2]
[351150982,1738357842651,-380.74,0.00018767,2]
[351150983,1738357842662,-500.0,0.00018767,2]
[351150984,1738357842672,-519.33,0.00018767,2]
[351150985,1738357842681,-500.0,0.00018767,2]
[351150986,1738357842690,-668.86,0.00018767,2]
[351150987,1738357842700,-962.19,0.00018767,2]
[351150988,1738357842709,-544.28,0.00018767,2]
[351150989,1738357842719,-794.38,0.00018767,2]
[351150991,1738357842728,-615.08,0.00018767,2]
[351150993,1738357842737,-158.09,0.00018767,2]
[351150995,1738357842746,-500.0,0.00018767,2]
[351150997,1738357842756,-500.0,0.00018767,2]
[351150998,1738357842766,-500.0,0.00018767,2]
[351150999,1738357842775,-500.0,0.00018767,2]
[351151001,1738357842784,-3472.56,0.00018767,2]
[351151003,1738357842794,-500.0,0.00018767,2]
[351151005,1738357842803,-1998.8,0.00018767,2]
[351151007,1738357842813,-788.53,0.00018767,2]
[351151009,1738357842822,-1280.87,0.00018767,2]
[351151010,1738357842831,-561.52,0.00018903,2]
[351151011,1738357842840,-500.0,0.00018903,2]
[351151012,1738357842849,-500.0,0.00018904,2]
[351151013,1738357842858,-500.0,0.00018904,2]
[351151014,1738357842867,-500.0,0.00018904,2]
[351151015,1738357842877,-2818.44,0.00018904,2]
[351151016,1738357842886,-500.0,0.00018904,2]
[351151018,1738357842895,-500.0,0.00018904,2]
[351151020,1738357842905,-500.0,0.00018904,2]
[351151022,1738357842914,-897.25,0.00018904,2]
[351151026,1738357842924,-424.99,0.00018904,2]
[351151028,1738357842933,-500.0,0.00018904,2]
[351151031,1738357842943,-519.33,0.00018904,2]
[351151033,1738357842952,-549.95,0.00018904,2]
[351151035,1738357842962,-668.86,0.00018904,2]
[351151036,1738357842971,-962.19,0.00018904,2]
[351151038,1738357842981,-544.28,0.00018904,2]
[351151040,1738357842991,-794.38,0.00018904,2]
[351151042,1738357843000,-615.08,0.00018904,2]
[351151045,1738357843009,-500.0,0.00018904,2]
[351151047,1738357843018,-500.0,0.00018904,2]
[351151049,1738357843027,-500.0,0.00018904,2]
[351151051,1738357843036,-507.36,0.00018904,2]
[351151052,1738357843046,-3472.56,0.00018904,2]
[351151053,1738357843055,-500.0,0.00018904,2]
[351151055,1738357843065,-1998.8,0.00018904,2]
[351151057,1738357843074,-788.53,0.00018904,2]
[351151058,1738357843083,-1280.87,0.00018904,2]
[351151060,1738357843093,-746.09,0.00019,2]
[351151061,1738357843102,-153.724,0.00019,2]
[351151062,1738357843112,-360.0,0.00019,8]
[351151065,1738357843121,-561.52,0.0001904,2]
[351151068,1738357843131,-583.0,0.0001904,2]
[351151070,1738357843141,-500.0,0.00019041,2]
[351151072,1738357843150,-500.0,0.00019041,2]
[351151073,1738357843161,-500.0,0.00019041,2]
[351151074,1738357843170,-2818.44,0.00019041,2]
[351151076,1738357843179,-500.0,0.00019041,2]
[351151078,1738357843189,-500.0,0.00019041,2]
[351151079,1738357843198,-500.0,0.00019041,2]
[351151081,1738357843207,-897.25,0.00019041,2]
[351151083,1738357843216,-151.0,0.00019041,2]
[351151084,1738357843226,-500.0,0.00019041,2]
[351151085,1738357843235,-156.257349,0.00019041,2]
[351151087,1738357843244,-519.33,0.00019041,2]
[351151088,1738357843254,-151.0,0.00019041,2]
[351151089,1738357843263,-668.86,0.00019041,2]
[351151090,1738357843272,-151.0,0.00019041,2]
[351151091,1738357843282,-170.28878,0.00019041,2]
[351151092,1738357843291,-151.0,0.00019041,2]
[351151094,1738357843300,-962.19,0.00019041,2]
[351151095,1738357843310,-170.28878,0.00019041,2]
[351151096,1738357843320,-544.28,0.00019041,2]
[351151097,1738357843330,-794.38,0.00019041,2]
[351151098,1738357843339,-615.08,0.00019041,2]
[351151099,1738357843348,-500.0,0.00019041,2]
[351151100,1738357843358,-623.08,0.00019041,2]
[351151101,1738357843367,-500.0,0.00019041,2]
[351151102,1738357843376,-3472.56,0.00019041,2]
[351151103,1738357843386,-500.0,0.00019041,2]
[351151104,1738357843395,-1998.8,0.00019041,2]
[351151105,1738357843406,-788.53,0.00019041,2]
[351151106,1738357843415,-1280.87,0.00019041,2]
[351151107,1738357843424,-151.0,0.00019177,2]
[351151109,1738357843434,-151.0,0.00019177,2]
[351151111,1738357843443,-151.0,0.00019177,2]
[351151113,1738357843453,-151.0,0.00019177,2]
[351151115,1738357843463,-151.0,0.00019177,2]
[351151117,1738357843472,-561.52,0.00019177,2]
[351151119,1738357843481,-500.0,0.00019178,2]
[351151121,1738357843490,-500.0,0.00019178,2]
[351151122,1738357843500,-334.42,0.00019178,2]
[351151123,1738357843510,-2818.44,0.00019178,2]
[351151124,1738357843520,-500.0,0.00019178,2]
[351151125,1738357843530,-500.0,0.00019178,2]
[351151126,1738357843540,-500.0,0.00019178,2]
[351151127,1738357843549,-244.49448719,0.00019178,2]
[351151128,1738357843679,-652.75551281,0.00019178,2]
[351151129,1738357843689,-500.0,0.00019178,2]
[351151130,1738357843698,-519.33,0.00019178,2]
[351151131,1738357843707,-668.86,0.00019178,2]
[351151132,1738357843716,-962.19,0.00019178,2]
[351151133,1738357843725,-544.28,0.00019178,2]
[351151134,1738357843735,-794.38,0.00019178,2]
[351151135,1738357843746,-615.08,0.00019178,2]
[351151136,1738357843756,-394.28,0.00019178,2]
[351151137,1738357843765,-500.0,0.00019178,2]
[351151138,1738357843775,-3472.56,0.00019178,2]
[351151139,1738357843785,-500.0,0.00019178,2]
[351151140,1738357843794,-1998.8,0.00019178,2]
[351151141,1738357843804,-788.53,0.00019178,2]
[351151142,1738357843814,-1280.87,0.00019178,2]
[351151143,1738357843823,-376.65230914,0.00019178,2]
[351151144,1738357843832,-395.0,0.00019194,2]
[351151145,1738357843842,-150.0,0.00019275,2]
[351151146,1738357843851,-1656.368,0.00019275,2]
[351151147,1738357843860,-561.52,0.00019314,2]
[351151148,1738357843870,-220.08,0.00019315,2]
[351151149,1738357843879,-500.0,0.00019315,2]
[351151150,1738357843889,-2818.44,0.00019315,2]
[351151151,1738357843899,-500.0,0.00019315,2]
[351151152,1738357843910,-500.0,0.00019315,2]
[351151153,1738357843919,-500.0,0.00019315,2]
[351151154,1738357843928,-897.25,0.00019315,2]
[351151155,1738357843937,-500.0,0.00019315,2]
[351151156,1738357843947,-519.33,0.00019315,2]
[351151157,1738357843956,-668.86,0.00019315,2]
[351151158,1738357843966,-962.19,0.00019315,2]
[351151159,1738357843975,-544.28,0.00019315,2]
[351151160,1738357843985,-794.38,0.00019315,2]
[351151161,1738357843994,-615.08,0.00019315,2]
[351151162,1738357844003,-151.0,0.00019315,2]
[351151163,1738357844012,-151.0,0.00019315,2]
[351151164,1738357844022,-500.0,0.00019315,2]
[351151165,1738357844031,-151.0,0.00019315,2]
[351151166,1738357844041,-151.0,0.00019315,2]
[351151167,1738357844050,-3472.56,0.00019315,2]
[351151168,1738357844060,-151.0,0.00019315,2]
[351151169,1738357844069,-500.0,0.00019315,2]
[351151170,1738357844078,-1998.8,0.00019315,2]
[351151171,1738357844088,-788.53,0.00019315,2]
[351151172,1738357844098,-1280.87,0.00019315,2]
[351151173,1738357844107,-151.0,0.00019451,2]
[351151174,1738357844116,-151.0,0.00019451,2]
[351151175,1738357844125,-197.838418,0.00019451,2]
[351151176,1738357844134,-197.838418,0.00019451,2]
[351151177,1738357844143,-151.0,0.00019451,2]
[351151178,1738357844153,-151.0,0.00019451,2]
[351151179,1738357844163,-151.0,0.00019451,2]
[351151180,1738357844172,-561.52,0.00019451,2]
[351151181,1738357844182,-500.0,0.00019452,2]
[351151182,1738357844191,-2818.44,0.00019452,2]
[351151183,1738357844200,-500.0,0.00019452,2]
[351151184,1738357844210,-127.64221405,0.00019452,2]
[351151185,1738357844222,-372.35778595,0.00019452,2]
[351151186,1738357844231,-500.0,0.00019452,2]
[351151187,1738357844241,-604.04221404,0.00019452,2]
[351151188,1738357844252,-293.20778596,0.00019452,2]
[351151189,1738357844261,-500.0,0.00019452,2]
[351151190,1738357844270,-519.33,0.00019452,2]
[351151191,1738357844279,-668.86,0.00019452,2]
[351151192,1738357844288,-962.19,0.00019452,2]
[351151193,1738357844297,-544.28,0.00019452,2]
[351151194,1738357844399,-794.38,0.00019452,2]
[351151195,1738357844410,-615.08,0.00019452,2]
[351151196,1738357844419,-500.0,0.00019452,2]
[351151197,1738357844429,-3472.56,0.00019452,2]
[351151198,1738357844439,-371.24,0.00019452,2]
[351151199,1738357844449,-1998.8,0.00019452,2]
[351151200,1738357844459,-788.53,0.00019452,2]
[351151201,1738357844469,-1280.87,0.00019452,2]
[351151202,1738357844479,-561.52,0.00019588,2]
[351151203,1738357844489,-174.22,0.00019589,2]
[351151204,1738357844498,-2818.44,0.00019589,2]
[351151205,1738357844508,-500.0,0.00019589,2]
[351151206,1738357844518,-500.0,0.00019589,2]
[351151207,1738357844528,-500.0,0.00019589,2]
[351151208,1738357844538,-897.25,0.00019589,2]
[351151209,1738357844547,-500.0,0.00019589,2]
[351151210,1738357844557,-519.33,0.00019589,2]
[351151211,1738357844566,-668.86,0.00019589,2]
[351151212,1738357844577,-962.19,0.00019589,2]
[351151213,1738357844587,-544.28,0.00019589,2]
[351151214,1738357844597,-590.56750305,0.00019589,2]
[351151215,1738357844609,-203.81249695,0.00019589,2]
[351151216,1738357844619,-151.0,0.00019589,2]
[351151217,1738357844629,-151.0,0.00019589,2]
[351151218,1738357844638,-615.08,0.00019589,2]
[351151219,1738357844647,-500.0,0.00019589,2]
[351151220,1738357844658,-2662.56979351,0.00019589,2]
[351151221,1738357844670,-809.99020649,0.00019589,2]
[351151222,1738357844679,-1998.8,0.00019589,2]
[351151223,1738357844689,-788.53,0.00019589,2]
[351151224,1738357844699,-1280.87,0.00019589,2]
[351151225,1738357844708,-561.52,0.00019725,2]
[351151226,1738357844718,-2818.44,0.00019726,2]
[351151227,1738357844728,-500.0,0.00019726,2]
[351151228,1738357844738,-596.62,0.00019726,2]
[351151229,1738357844748,-500.0,0.00019726,2]
[351151230,1738357844758,-897.25,0.00019726,2]
[351151231,1738357844768,-500.0,0.00019726,2]
[351151232,1738357844778,-519.33,0.00019726,2]
[351151233,1738357844787,-668.86,0.00019726,2]
[351151234,1738357844796,-962.19,0.00019726,2]
[351151235,1738357844806,-544.28,0.00019726,2]
[351151236,1738357844815,-794.38,0.00019726,2]
[351151237,1738357844825,-615.08,0.00019726,2]
[351151238,1738357844835,-500.0,0.00019726,2]
[351151239,1738357844845,-3472.56,0.00019726,2]
[351151240,1738357844855,-1998.8,0.00019726,2]
[351151241,1738357844865,-788.53,0.00019726,2]
[351151242,1738357844875,-1280.87,0.00019726,2]
[351151243,1738357844885,-561.52,0.00019862,2]
[351151244,1738357844896,-2818.44,0.00019863,2]
[351151245,1738357844907,-500.0,0.00019863,2]
[351151246,1738357844917,-500.0,0.00019863,2]
[351151247,1738357844927,-897.25,0.00019863,2]
[351151248,1738357844936,-298.28,0.00019863,2]
[351151249,1738357844945,-519.33,0.00019863,2]
[351151250,1738357844955,-668.86,0.00019863,2]
[351151251,1738357844964,-962.19,0.00019863,2]
[351151252,1738357844973,-544.28,0.00019863,2]
[351151253,1738357844982,-794.38,0.00019863,2]
[351151254,1738357844991,-615.08,0.00019863,2]
[351151255,1738357845000,-500.0,0.00019863,2]
[351151256,1738357845010,-3472.56,0.00019863,2]
[351151257,1738357845019,-1998.8,0.00019863,2]
[351151258,1738357845029,-788.53,0.00019863,2]
[351151259,1738357845039,-1280.87,0.00019863,2]
[351151260,1738357845048,-6783.62824715,0.000199,2]
[351151261,1738357845057,-1902.89762307,0.000199,2]
[351151262,1738357845066,-500.0,0.00019999,2]
[351151263,1738357845076,-2744.52,0.00019999,2]
[351151264,1738357845085,-561.52,0.00019999,2]
[351151265,1738357845095,-46868.8925385,0.0002,15]
[351151266,1738357845107,-1042644.04983001,0.0002,15]
[351151267,1738357845122,-329.37717534,0.0002,15]
[351151268,1738357845133,-2417.439763,0.0002,15]
[351151269,1738357845144,-366.63173664,0.0002,15]
[351151270,1738357845155,-4132.55184525,0.0002,15]
[351151271,1738357845168,-2600.0,0.0002,15]
[351151272,1738357845295,-3127.57903725,0.00018767,5]
[351151273,1738357845304,-5117.12096275,0.0002,15]
[351151274,1738357845319,-4301.710511,0.0002,15]
[351151275,1738357845330,-3285.98465545,0.0002,15]
[351151276,1738357845341,-4431.75399856,0.0002,15]
[351151277,1738357845352,-45274.03064063,0.0002,15]
[351151278,1738357845363,-274011.86301057,0.0002,15]
[351151279,1738357845378,-18615.87709332,0.0002,15]
[351151280,1738357845387,-1378.0,0.0002,2]
[351151281,1738357845396,-160.0,0.0002,2]
[351151282,1738357845405,-905.2,0.0002,2]
[351151283,1738357845418,-3512.4967114,0.0002,30]
[351151284,1738357845428,-1000.0,0.0002,20]
[351151285,1738357845437,-1000.0,0.0002,6]
[351151286,1738357845446,-23000.0,0.0002,5]
[351151287,1738357845455,-14771.73677791,0.0002,30]
[351151288,1738357845464,-500.0,0.0002,2]
[351151289,1738357845474,-264.4025493,0.0002,2]
[351151290,1738357845483,-500.0,0.0002,2]
[351151291,1738357845492,-500.0,0.0002,2]
[351151292,1738357845501,-500.0,0.0002,2]